fUST/lending_fUST_20260520
["ID","MTS","AMOUNT","RATE_DAILY","PERIOD"]
[422689946,1779249046000,-500.0,8.767e-05,2]
[422689935,1779249046000,-500.0,8.767e-05,2]
[422689923,1779249046000,-500.0,8.493e-05,2]
[422689931,1779249046000,-2106.59014259,8.636e-05,4]
[422689928,1779249046000,-160.0,8.611e-05,4]
[422689926,1779249046000,-1459.47,8.493e-05,2]
[422689929,1779249046000,-2708.12,8.63e-05,2]
[422689925,1779249046000,-500.0,8.493e-05,2]
[422689927,1779249046000,-500.0,8.493e-05,2]
[422689930,1779249046000,-1354.05,8.63e-05,2]
[422689933,1779249046000,-501.28,8.767e-05,2]
[422689932,1779249046000,-3506.7656,8.767e-05,2]
[422689937,1779249046000,-500.0,8.767e-05,2]
[422689936,1779249046000,-500.0,8.767e-05,2]
[422689938,1779249046000,-500.0,8.767e-05,2]
[422689947,1779249046000,-500.0,8.767e-05,2]
[422689934,1779249046000,-730.93,8.767e-05,2]
[422689970,1779249046000,-500.0,8.767e-05,2]
[422690017,1779249046000,-500.0,8.767e-05,2]
[422689984,1779249046000,-500.0,8.767e-05,2]
[422690010,1779249046000,-1059.8,8.767e-05,2]
[422690016,1779249046000,-500.0,8.767e-05,2]
[422690023,1779249046000,-747.5,8.767e-05,2]
[422690015,1779249046000,-500.0,8.767e-05,2]
[422690025,1779249046000,-599.37,8.767e-05,2]
[422690024,1779249046000,-1710.6,8.767e-05,2]
[422690035,1779249046000,-500.0,8.767e-05,2]
[422690031,1779249046000,-235.96763693,8.767e-05,2]
[422690036,1779249046000,-500.0,8.767e-05,2]
[422690029,1779249046000,-500.0,8.767e-05,2]
[422690027,1779249046000,-500.0,8.767e-05,2]
[422690026,1779249046000,-500.0,8.767e-05,2]
[422690028,1779249046000,-500.0,8.767e-05,2]
[422690034,1779249046000,-500.0,8.767e-05,2]
[422690032,1779249046000,-761.07,8.767e-05,2]
[422690030,1779249046000,-500.0,8.767e-05,2]
[422690033,1779249046000,-500.0,8.767e-05,2]
[422690038,1779249046000,-500.0,8.767e-05,2]
[422690037,1779249046000,-603.96,8.767e-05,2]
[422690047,1779249046000,-500.0,8.767e-05,2]
[422690048,1779249046000,-500.0,8.767e-05,2]
[422690045,1779249046000,-1475.1611,8.767e-05,2]
[422690046,1779249046000,-500.0,8.767e-05,2]
[422690041,1779249046000,-654.02,8.767e-05,2]
[422690042,1779249046000,-872.63,8.767e-05,2]
[422690043,1779249046000,-500.0,8.767e-05,2]
[422690039,1779249046000,-500.0,8.767e-05,2]
[422690044,1779249046000,-500.0,8.767e-05,2]
[422690040,1779249046000,-3345.65,8.767e-05,2]
[422690020,1779249046000,-500.0,8.767e-05,2]
[422690009,1779249046000,-603.83947795,8.767e-05,2]
[422690012,1779249046000,-500.0,8.767e-05,2]
[422690013,1779249046000,-500.0,8.767e-05,2]
[422689977,1779249046000,-500.0,8.767e-05,2]
[422689988,1779249046000,-500.0,8.767e-05,2]
[422689982,1779249046000,-500.0,8.767e-05,2]
[422689990,1779249046000,-663.08,8.767e-05,2]
[422689979,1779249046000,-500.0,8.767e-05,2]
[422689980,1779249046000,-1512.21,8.767e-05,2]
[422689986,1779249046000,-500.0,8.767e-05,2]
[422689992,1779249046000,-500.0,8.767e-05,2]
[422689983,1779249046000,-500.0,8.767e-05,2]
[422689985,1779249046000,-500.0,8.767e-05,2]
[422689981,1779249046000,-500.0,8.767e-05,2]
[422689991,1779249046000,-500.0,8.767e-05,2]
[422689994,1779249046000,-500.0,8.767e-05,2]
[422690004,1779249046000,-605.35,8.767e-05,2]
[422689971,1779249046000,-500.0,8.767e-05,2]
[422690005,1779249046000,-307.26259512,8.767e-05,2]
[422689997,1779249046000,-522.36,8.767e-05,2]
[422690002,1779249046000,-545.04,8.767e-05,2]
[422689995,1779249046000,-500.0,8.767e-05,2]
[422689999,1779249046000,-3125.43,8.767e-05,2]
[422689993,1779249046000,-500.0,8.767e-05,2]
[422690003,1779249046000,-500.0,8.767e-05,2]
[422690000,1779249046000,-1046.45,8.767e-05,2]
[422690001,1779249046000,-909.59,8.767e-05,2]
[422689998,1779249046000,-500.0,8.767e-05,2]
[422690008,1779249046000,-500.0,8.767e-05,2]
[422690018,1779249046000,-1085.6,8.767e-05,2]
[422690019,1779249046000,-584.54,8.767e-05,2]
[422690007,1779249046000,-532.81932392,8.767e-05,2]
[422690022,1779249046000,-509.76,8.767e-05,2]
[422690006,1779249046000,-582.8,8.767e-05,2]
[422689909,1779249046000,-500.0,8.493e-05,2]
[422690133,1779249047000,-500.0,8.767e-05,2]
[422690127,1779249047000,-500.0,8.767e-05,2]
[422690069,1779249047000,-500.0,8.767e-05,2]
[422690070,1779249047000,-500.0,8.767e-05,2]
[422690072,1779249047000,-615.97,8.767e-05,2]
[422690073,1779249047000,-3346.94,8.767e-05,2]
[422690074,1779249047000,-1015.98992903,8.767e-05,2]
[422690075,1779249047000,-1015.09007097,8.767e-05,2]
[422690076,1779249047000,-500.0,8.767e-05,2]
[422690077,1779249047000,-522.75,8.767e-05,2]
[422690078,1779249047000,-596.95,8.767e-05,2]
[422690082,1779249047000,-500.0,8.767e-05,2]
[422690080,1779249047000,-546.69,8.767e-05,2]
[422690083,1779249047000,-500.0,8.767e-05,2]
[422690084,1779249047000,-500.0,8.767e-05,2]
[422690079,1779249047000,-150.08738707,8.767e-05,2]
[422690081,1779249047000,-551.86,8.767e-05,2]
[422690085,1779249047000,-500.0,8.767e-05,2]
[422690087,1779249047000,-500.0,8.767e-05,2]
[422690071,1779249047000,-500.0,8.767e-05,2]
[422690067,1779249047000,-500.68,8.767e-05,2]
[422690068,1779249047000,-1048.56,8.767e-05,2]
[422690066,1779249047000,-500.0,8.767e-05,2]
[422690130,1779249047000,-500.0,8.767e-05,2]
[422690050,1779249047000,-1376.05,8.767e-05,2]
[422690049,1779249047000,-1021.27,8.767e-05,2]
[422690051,1779249047000,-500.0,8.767e-05,2]
[422690052,1779249047000,-937.41,8.767e-05,2]
[422690062,1779249047000,-500.0,8.767e-05,2]
[422690056,1779249047000,-402.00301127,8.767e-05,2]
[422690054,1779249047000,-500.0,8.767e-05,2]
[422690089,1779249047000,-500.0,8.767e-05,2]
[422690055,1779249047000,-599.31,8.767e-05,2]
[422690063,1779249047000,-646.83,8.767e-05,2]
[422690058,1779249047000,-500.0,8.767e-05,2]
[422690060,1779249047000,-500.0,8.767e-05,2]
[422690059,1779249047000,-500.0,8.767e-05,2]
[422690061,1779249047000,-500.0,8.767e-05,2]
[422690057,1779249047000,-199.89197526,8.767e-05,2]
[422690064,1779249047000,-500.0,8.767e-05,2]
[422690065,1779249047000,-500.0,8.767e-05,2]
[422690053,1779249047000,-1878.75,8.767e-05,2]
[422690090,1779249047000,-792.03,8.767e-05,2]
[422690086,1779249047000,-500.0,8.767e-05,2]
[422690095,1779249047000,-1053.65,8.767e-05,2]
[422690115,1779249047000,-1260.78,8.767e-05,2]
[422690114,1779249047000,-500.0,8.767e-05,2]
[422690088,1779249047000,-500.0,8.767e-05,2]
[422690123,1779249047000,-500.0,8.767e-05,2]
[422690113,1779249047000,-1614.33,8.767e-05,2]
[422690117,1779249047000,-500.0,8.767e-05,2]
[422690119,1779249047000,-500.0,8.767e-05,2]
[422690118,1779249047000,-538.39868557,8.767e-05,2]
[422690112,1779249047000,-311.90983723,8.767e-05,2]
[422690122,1779249047000,-500.0,8.767e-05,2]
[422690120,1779249047000,-500.0,8.767e-05,2]
[422690124,1779249047000,-500.0,8.767e-05,2]
[422690125,1779249047000,-228.04944928,8.767e-05,2]
[422690126,1779249047000,-958.85,8.767e-05,2]
[422690132,1779249047000,-500.0,8.767e-05,2]
[422690131,1779249047000,-500.0,8.767e-05,2]
[422690129,1779249047000,-927.77,8.767e-05,2]
[422690128,1779249047000,-7300.87,8.767e-05,2]
[422690121,1779249047000,-500.0,8.767e-05,2]
[422690109,1779249047000,-500.0,8.767e-05,2]
[422690116,1779249047000,-500.0,8.767e-05,2]
[422690102,1779249047000,-504.14241846,8.767e-05,2]
[422690091,1779249047000,-500.0,8.767e-05,2]
[422690097,1779249047000,-500.0,8.767e-05,2]
[422690094,1779249047000,-500.0,8.767e-05,2]
[422690105,1779249047000,-500.0,8.767e-05,2]
[422690092,1779249047000,-500.0,8.767e-05,2]
[422690098,1779249047000,-505.57,8.767e-05,2]
[422690096,1779249047000,-500.0,8.767e-05,2]
[422690100,1779249047000,-500.0,8.767e-05,2]
[422690093,1779249047000,-1212.36,8.767e-05,2]
[422690099,1779249047000,-500.0,8.767e-05,2]
[422690107,1779249047000,-500.0,8.767e-05,2]
[422690103,1779249047000,-500.0,8.767e-05,2]
[422690104,1779249047000,-178.59075863,8.767e-05,2]
[422690110,1779249047000,-500.0,8.767e-05,2]
[422690108,1779249047000,-500.0,8.767e-05,2]
[422690101,1779249047000,-573.45,8.767e-05,2]
[422690106,1779249047000,-500.0,8.767e-05,2]
[422690111,1779249047000,-502.4720649,8.767e-05,2]
[422690149,1779249048000,-500.0,8.767e-05,2]
[422690139,1779249048000,-500.0,8.767e-05,2]
[422690140,1779249048000,-162.8720886,8.767e-05,2]
[422690148,1779249048000,-500.0,8.767e-05,2]
[422690135,1779249048000,-500.0,8.767e-05,2]
[422690137,1779249048000,-500.0,8.767e-05,2]
[422690134,1779249048000,-629.22,8.767e-05,2]
[422690136,1779249048000,-1700.57,8.767e-05,2]
[422690143,1779249048000,-500.0,8.767e-05,2]
[422690138,1779249048000,-1474.95,8.767e-05,2]
[422690145,1779249048000,-500.0,8.767e-05,2]
[422690159,1779249048000,-316.00556629,8.767e-05,2]
[422690141,1779249048000,-500.0,8.767e-05,2]
[422690144,1779249048000,-543.83,8.767e-05,2]
[422690162,1779249048000,-500.0,8.767e-05,2]
[422690154,1779249048000,-2231.45,8.767e-05,2]
[422690158,1779249048000,-500.0,8.767e-05,2]
[422690152,1779249048000,-3238.28,8.767e-05,2]
[422690155,1779249048000,-500.0,8.767e-05,2]
[422690150,1779249048000,-500.0,8.767e-05,2]
[422690142,1779249048000,-3361.27,8.767e-05,2]
[422690147,1779249048000,-500.0,8.767e-05,2]
[422690146,1779249048000,-2463.23,8.767e-05,2]
[422690153,1779249048000,-500.0,8.767e-05,2]
[422690300,1779249049000,-500.0,9.041e-05,2]
[422690302,1779249049000,-500.0,9.041e-05,2]
[422690303,1779249049000,-500.0,9.041e-05,2]
[422690305,1779249049000,-500.0,9.041e-05,2]
[422690297,1779249049000,-500.0,9.041e-05,2]
[422690306,1779249049000,-500.0,9.041e-05,2]
[422690298,1779249049000,-564.27365329,9.041e-05,2]
[422690301,1779249049000,-500.0,9.041e-05,2]
[422690307,1779249049000,-500.0,9.041e-05,2]
[422690304,1779249049000,-593.29,9.041e-05,2]
[422690299,1779249049000,-500.0,9.041e-05,2]
[422690296,1779249049000,-500.0,9.041e-05,2]
[422690309,1779249049000,-825.11394122,9.041e-05,2]
[422690311,1779249049000,-500.0,9.041e-05,2]
[422690321,1779249049000,-500.0,9.041e-05,2]
[422690320,1779249049000,-500.0,9.041e-05,2]
[422690308,1779249049000,-560.6,9.041e-05,2]
[422690310,1779249049000,-500.0,9.041e-05,2]
[422690295,1779249049000,-665.2,9.041e-05,2]
[422690313,1779249049000,-1325.96,9.041e-05,2]
[422690312,1779249049000,-798.9,9.041e-05,2]
[422690318,1779249049000,-1298.84,9.041e-05,2]
[422690317,1779249049000,-500.0,9.041e-05,2]
[422690315,1779249049000,-500.0,9.041e-05,2]
[422690316,1779249049000,-500.0,9.041e-05,2]
[422690314,1779249049000,-500.0,9.041e-05,2]
[422690322,1779249049000,-500.0,9.041e-05,2]
[422690325,1779249049000,-500.0,9.041e-05,2]
[422690319,1779249049000,-500.0,9.041e-05,2]
[422690291,1779249049000,-500.0,9.041e-05,2]
[422690289,1779249049000,-500.0,9.041e-05,2]
[422690287,1779249049000,-500.0,9.041e-05,2]
[422690324,1779249049000,-500.0,9.041e-05,2]
[422690266,1779249049000,-1459.47,8.767e-05,2]
[422690267,1779249049000,-500.0,8.767e-05,2]
[422690265,1779249049000,-161.529743,8.767e-05,2]
[422690263,1779249049000,-500.0,8.767e-05,2]
[422690264,1779249049000,-500.0,8.767e-05,2]
[422690269,1779249049000,-160.0,8.919e-05,5]
[422690268,1779249049000,-180.0025,8.904e-05,2]
[422690270,1779249049000,-182.64120045,8.919e-05,5]
[422690275,1779249049000,-500.0,9.041e-05,2]
[422690278,1779249049000,-2539.6905,9.041e-05,2]
[422690277,1779249049000,-500.0,9.041e-05,2]
[422690279,1779249049000,-1445.8509,9.041e-05,2]
[422690273,1779249049000,-352.12660391,9e-05,2]
[422690272,1779249049000,-420.0,8.929e-05,2]
[422690280,1779249049000,-501.28,9.041e-05,2]
[422690271,1779249049000,-920.0,8.928e-05,2]
[422690276,1779249049000,-500.0,9.041e-05,2]
[422690274,1779249049000,-500.0,9e-05,2]
[422690282,1779249049000,-500.0,9.041e-05,2]
[422690281,1779249049000,-730.93,9.041e-05,2]
[422690294,1779249049000,-500.0,9.041e-05,2]
[422690292,1779249049000,-516.2,9.041e-05,2]
[422690293,1779249049000,-500.0,9.041e-05,2]
[422690283,1779249049000,-500.0,9.041e-05,2]
[422690284,1779249049000,-500.0,9.041e-05,2]
[422690285,1779249049000,-500.0,9.041e-05,2]
[422690286,1779249049000,-500.0,9.041e-05,2]
[422690288,1779249049000,-500.0,9.041e-05,2]
[422690290,1779249049000,-514.15,9.041e-05,2]
[422690326,1779249049000,-500.0,9.041e-05,2]
[422690342,1779249049000,-545.04,9.041e-05,2]
[422690328,1779249049000,-501.81796716,9.041e-05,2]
[422690363,1779249049000,-500.0,9.041e-05,2]
[422690374,1779249049000,-872.63,9.041e-05,2]
[422690373,1779249049000,-654.02,9.041e-05,2]
[422690362,1779249049000,-500.0,9.041e-05,2]
[422690375,1779249049000,-500.0,9.041e-05,2]
[422690365,1779249049000,-500.0,9.041e-05,2]
[422690367,1779249049000,-500.0,9.041e-05,2]
[422690364,1779249049000,-761.07,9.041e-05,2]
[422690366,1779249049000,-500.0,9.041e-05,2]
[422690369,1779249049000,-603.96,9.041e-05,2]
[422690372,1779249049000,-3345.65,9.041e-05,2]
[422690368,1779249049000,-500.0,9.041e-05,2]
[422690371,1779249049000,-500.0,9.041e-05,2]
[422690377,1779249049000,-996.3853,9.041e-05,2]
[422690378,1779249049000,-500.0,9.041e-05,2]
[422690376,1779249049000,-500.0,9.041e-05,2]
[422690380,1779249049000,-500.0,9.041e-05,2]
[422690381,1779249049000,-1021.27,9.041e-05,2]
[422690379,1779249049000,-500.0,9.041e-05,2]
[422690383,1779249049000,-500.0,9.041e-05,2]
[422690382,1779249049000,-1376.05,9.041e-05,2]
[422690385,1779249049000,-1878.75,9.041e-05,2]
[422690386,1779249049000,-500.0,9.041e-05,2]
[422690384,1779249049000,-937.41,9.041e-05,2]
[422690387,1779249049000,-599.31,9.041e-05,2]
[422690389,1779249049000,-500.0,9.041e-05,2]
[422690390,1779249049000,-500.0,9.041e-05,2]
[422690388,1779249049000,-500.0,9.041e-05,2]
[422690327,1779249049000,-500.0,9.041e-05,2]
[422690359,1779249049000,-500.0,9.041e-05,2]
[422690355,1779249049000,-509.76,9.041e-05,2]
[422690370,1779249049000,-500.0,9.041e-05,2]
[422690354,1779249049000,-500.0,9.041e-05,2]
[422690329,1779249049000,-500.0,9.041e-05,2]
[422690353,1779249049000,-584.54,9.041e-05,2]
[422690323,1779249049000,-1512.21,9.041e-05,2]
[422690331,1779249049000,-663.08,9.041e-05,2]
[422690332,1779249049000,-500.0,9.041e-05,2]
[422690333,1779249049000,-500.0,9.041e-05,2]
[422690334,1779249049000,-500.0,9.041e-05,2]
[422690336,1779249049000,-500.0,9.041e-05,2]
[422690335,1779249049000,-500.0,9.041e-05,2]
[422690348,1779249049000,-500.0,9.041e-05,2]
[422690347,1779249049000,-1059.8,9.041e-05,2]
[422690346,1779249049000,-500.0,9.041e-05,2]
[422690337,1779249049000,-522.36,9.041e-05,2]
[422690341,1779249049000,-909.59,9.041e-05,2]
[422690345,1779249049000,-582.8,9.041e-05,2]
[422690330,1779249049000,-500.0,9.041e-05,2]
[422690339,1779249049000,-3125.43,9.041e-05,2]
[422690340,1779249049000,-1046.45,9.041e-05,2]
[422690352,1779249049000,-1085.6,9.041e-05,2]
[422690358,1779249049000,-599.37,9.041e-05,2]
[422690356,1779249049000,-747.5,9.041e-05,2]
[422690361,1779249049000,-500.0,9.041e-05,2]
[422690360,1779249049000,-500.0,9.041e-05,2]
[422690349,1779249049000,-500.0,9.041e-05,2]
[422690357,1779249049000,-1710.6,9.041e-05,2]
[422690350,1779249049000,-500.0,9.041e-05,2]
[422690343,1779249049000,-500.0,9.041e-05,2]
[422690338,1779249049000,-500.0,9.041e-05,2]
[422690344,1779249049000,-605.35,9.041e-05,2]
[422690351,1779249049000,-500.0,9.041e-05,2]
[422690434,1779249050000,-500.0,9.041e-05,2]
[422690433,1779249050000,-440.14479647,9.041e-05,2]
[422690432,1779249050000,-500.0,9.041e-05,2]
[422690425,1779249050000,-500.0,9.041e-05,2]
[422690429,1779249050000,-573.45,9.041e-05,2]
[422690437,1779249050000,-1614.33,9.041e-05,2]
[422690431,1779249050000,-500.0,9.041e-05,2]
[422690436,1779249050000,-500.0,9.041e-05,2]
[422690430,1779249050000,-500.0,9.041e-05,2]
[422690427,1779249050000,-500.0,9.041e-05,2]
[422690435,1779249050000,-500.0,9.041e-05,2]
[422690426,1779249050000,-505.57,9.041e-05,2]
[422690428,1779249050000,-500.0,9.041e-05,2]
[422690439,1779249050000,-1260.78,9.041e-05,2]
[422690440,1779249050000,-500.0,9.041e-05,2]
[422690442,1779249050000,-500.0,9.041e-05,2]
[422690445,1779249050000,-500.0,9.041e-05,2]
[422690451,1779249050000,-927.77,9.041e-05,2]
[422690450,1779249050000,-7300.87,9.041e-05,2]
[422690443,1779249050000,-500.0,9.041e-05,2]
[422690438,1779249050000,-500.0,9.041e-05,2]
[422690441,1779249050000,-500.0,9.041e-05,2]
[422690444,1779249050000,-500.0,9.041e-05,2]
[422690447,1779249050000,-500.0,9.041e-05,2]
[422690448,1779249050000,-958.85,9.041e-05,2]
[422690453,1779249050000,-500.0,9.041e-05,2]
[422690452,1779249050000,-500.0,9.041e-05,2]
[422690463,1779249050000,-500.0,9.041e-05,2]
[422690416,1779249050000,-500.0,9.041e-05,2]
[422690449,1779249050000,-500.0,9.041e-05,2]
[422690418,1779249050000,-792.03,9.041e-05,2]
[422690395,1779249050000,-500.0,9.041e-05,2]
[422690423,1779249050000,-1053.65,9.041e-05,2]
[422690454,1779249050000,-500.0,9.041e-05,2]
[422690396,1779249050000,-500.0,9.041e-05,2]
[422690391,1779249050000,-500.0,9.041e-05,2]
[422690392,1779249050000,-500.0,9.041e-05,2]
[422690393,1779249050000,-646.83,9.041e-05,2]
[422690394,1779249050000,-500.0,9.041e-05,2]
[422690398,1779249050000,-1048.56,9.041e-05,2]
[422690409,1779249050000,-551.86,9.041e-05,2]
[422690408,1779249050000,-546.69,9.041e-05,2]
[422690410,1779249050000,-500.0,9.041e-05,2]
[422690397,1779249050000,-500.68,9.041e-05,2]
[422690399,1779249050000,-500.0,9.041e-05,2]
[422690400,1779249050000,-500.0,9.041e-05,2]
[422690404,1779249050000,-2031.08,9.041e-05,2]
[422690422,1779249050000,-500.0,9.041e-05,2]
[422690407,1779249050000,-596.95,9.041e-05,2]
[422690406,1779249050000,-522.75,9.041e-05,2]
[422690405,1779249050000,-500.0,9.041e-05,2]
[422690401,1779249050000,-500.0,9.041e-05,2]
[422690402,1779249050000,-615.97,9.041e-05,2]
[422690412,1779249050000,-500.0,9.041e-05,2]
[422690411,1779249050000,-499.80636835,9.041e-05,2]
[422690413,1779249050000,-500.0,9.041e-05,2]
[422690415,1779249050000,-500.0,9.041e-05,2]
[422690414,1779249050000,-500.0,9.041e-05,2]
[422690421,1779249050000,-1212.36,9.041e-05,2]
[422690424,1779249050000,-500.0,9.041e-05,2]
[422690420,1779249050000,-523.80816969,9.041e-05,2]
[422690419,1779249050000,-500.0,9.041e-05,2]
[422690417,1779249050000,-500.0,9.041e-05,2]
[422690403,1779249050000,-3346.94,9.041e-05,2]
[422690456,1779249050000,-629.22,9.041e-05,2]
[422690446,1779249050000,-500.0,9.041e-05,2]
[422690464,1779249050000,-543.83,9.041e-05,2]
[422690494,1779249050000,-500.0,9.041e-05,2]
[422690493,1779249050000,-500.0,9.041e-05,2]
[422690504,1779249050000,-500.0,9.041e-05,2]
[422690496,1779249050000,-500.0,9.041e-05,2]
[422690505,1779249050000,-501.0558195,9.041e-05,2]
[422690498,1779249050000,-500.0,9.041e-05,2]
[422690497,1779249050000,-2195.67,9.041e-05,2]
[422690495,1779249050000,-2001.85,9.041e-05,2]
[422690499,1779249050000,-500.0,9.041e-05,2]
[422690501,1779249050000,-500.0,9.041e-05,2]
[422690503,1779249050000,-151.6353035,9.041e-05,2]
[422690500,1779249050000,-1841.89,9.041e-05,2]
[422690502,1779249050000,-2357.37,9.041e-05,2]
[422690507,1779249050000,-4544.81,9.041e-05,2]
[422690488,1779249050000,-2103.07,9.041e-05,2]
[422690517,1779249050000,-500.0,9.041e-05,2]
[422690506,1779249050000,-5944.77,9.041e-05,2]
[422690509,1779249050000,-810.54,9.041e-05,2]
[422690511,1779249050000,-500.0,9.041e-05,2]
[422690510,1779249050000,-500.0,9.041e-05,2]
[422690508,1779249050000,-500.0,9.041e-05,2]
[422690515,1779249050000,-33279.63,9.041e-05,2]
[422690516,1779249050000,-500.0,9.041e-05,2]
[422690514,1779249050000,-1091.4,9.041e-05,2]
[422690513,1779249050000,-4625.68,9.041e-05,2]
[422690519,1779249050000,-1645.56,9.041e-05,2]
[422690520,1779249050000,-500.0,9.041e-05,2]
[422690523,1779249050000,-1292.85,9.041e-05,2]
[422690521,1779249050000,-500.0,9.041e-05,2]
[422690455,1779249050000,-639.07610348,9.041e-05,2]
[422690518,1779249050000,-6662.64,9.041e-05,2]
[422690487,1779249050000,-500.0,9.041e-05,2]
[422690512,1779249050000,-500.0,9.041e-05,2]
[422690489,1779249050000,-500.0,9.041e-05,2]
[422690461,1779249050000,-500.0,9.041e-05,2]
[422690485,1779249050000,-685.03,9.041e-05,2]
[422690460,1779249050000,-500.0,9.041e-05,2]
[422690458,1779249050000,-500.0,9.041e-05,2]
[422690459,1779249050000,-1474.95,9.041e-05,2]
[422690462,1779249050000,-3361.27,9.041e-05,2]
[422690522,1779249050000,-500.0,9.041e-05,2]
[422690465,1779249050000,-500.0,9.041e-05,2]
[422690469,1779249050000,-500.0,9.041e-05,2]
[422690467,1779249050000,-500.0,9.041e-05,2]
[422690468,1779249050000,-500.0,9.041e-05,2]
[422690470,1779249050000,-390.85133277,9.041e-05,2]
[422690466,1779249050000,-2463.23,9.041e-05,2]
[422690471,1779249050000,-500.0,9.041e-05,2]
[422690476,1779249050000,-500.0,9.041e-05,2]
[422690457,1779249050000,-1700.57,9.041e-05,2]
[422690478,1779249050000,-500.0,9.041e-05,2]
[422690472,1779249050000,-3238.28,9.041e-05,2]
[422690483,1779249050000,-500.92342048,9.041e-05,2]
[422690481,1779249050000,-500.0,9.041e-05,2]
[422690486,1779249050000,-500.0,9.041e-05,2]
[422690491,1779249050000,-2435.38,9.041e-05,2]
[422690492,1779249050000,-1527.67,9.041e-05,2]
[422690480,1779249050000,-500.0,9.041e-05,2]
[422690482,1779249050000,-803.8,9.041e-05,2]
[422690490,1779249050000,-541.16,9.041e-05,2]
[422690473,1779249050000,-500.0,9.041e-05,2]
[422690477,1779249050000,-500.0,9.041e-05,2]
[422690474,1779249050000,-2231.45,9.041e-05,2]
[422690484,1779249050000,-729.57,9.041e-05,2]
[422690479,1779249050000,-2787.97,9.041e-05,2]
[422690475,1779249050000,-500.0,9.041e-05,2]
[422690554,1779249051000,-500.0,9.041e-05,2]
[422690551,1779249051000,-500.0,9.041e-05,2]
[422690553,1779249051000,-2222.54,9.041e-05,2]
[422690549,1779249051000,-1867.28,9.041e-05,2]
[422690556,1779249051000,-500.0,9.041e-05,2]
[422690555,1779249051000,-500.0,9.041e-05,2]
[422690552,1779249051000,-1365.26,9.041e-05,2]
[422690561,1779249051000,-218.17793259,9.041e-05,2]
[422690562,1779249051000,-500.0,9.041e-05,2]
[422690550,1779249051000,-500.0,9.041e-05,2]
[422690569,1779249051000,-363.27377052,9.041e-05,2]
[422690563,1779249051000,-3211.7,9.041e-05,2]
[422690568,1779249051000,-1033.44,9.041e-05,2]
[422690564,1779249051000,-713.95,9.041e-05,2]
[422690567,1779249051000,-500.0,9.041e-05,2]
[422690566,1779249051000,-584.58368776,9.041e-05,2]
[422690565,1779249051000,-500.0,9.041e-05,2]
[422690570,1779249051000,-500.0,9.041e-05,2]
[422690573,1779249051000,-500.0,9.041e-05,2]
[422690571,1779249051000,-500.0,9.041e-05,2]
[422690558,1779249051000,-500.0,9.041e-05,2]
[422690572,1779249051000,-179.57230275,9.041e-05,2]
[422690560,1779249051000,-500.0,9.041e-05,2]
[422690559,1779249051000,-500.0,9.041e-05,2]
[422690545,1779249051000,-500.0,9.041e-05,2]
[422690548,1779249051000,-2935.75,9.041e-05,2]
[422690574,1779249051000,-587.54,9.041e-05,2]
[422690528,1779249051000,-500.0,9.041e-05,2]
[422690530,1779249051000,-500.0,9.041e-05,2]
[422690531,1779249051000,-500.0,9.041e-05,2]
[422690526,1779249051000,-2807.6,9.041e-05,2]
[422690524,1779249051000,-508.96,9.041e-05,2]
[422690529,1779249051000,-500.0,9.041e-05,2]
[422690525,1779249051000,-500.0,9.041e-05,2]
[422690527,1779249051000,-1969.88,9.041e-05,2]
[422690533,1779249051000,-500.0,9.041e-05,2]
[422690544,1779249051000,-5393.86,9.041e-05,2]
[422690532,1779249051000,-689.22,9.041e-05,2]
[422690543,1779249051000,-842.18,9.041e-05,2]
[422690534,1779249051000,-500.0,9.041e-05,2]
[422690539,1779249051000,-500.0,9.041e-05,2]
[422690537,1779249051000,-500.0,9.041e-05,2]
[422690536,1779249051000,-500.0,9.041e-05,2]
[422690542,1779249051000,-571.28,9.041e-05,2]
[422690538,1779249051000,-1720.1,9.041e-05,2]